bitfinex/quotes_ETHUSD_20211001
["timestamp","ask_amount","ask_price","bid_price","bid_amount"]
[1633054701233,2.83131132,3005.8,3005.7,2.8708344]
[1633054701435,7.83131132,3005.8,3005.7,2.8708344]
[1633054701635,6.83131132,3005.8,3005.7,2.8708344]
[1633054701833,9.12531132,3005.8,3005.7,2.8708344]
[1633054702036,9.12531132,3005.8,3005.7,2.93618447]
[1633054702234,9.21847344,3005.8,3005.7,2.93618447]
[1633054702637,12.91759344,3005.8,3005.7,2.93618447]
[1633054702836,7.92447344,3005.8,3005.7,2.93618447]
[1633054703038,8.21847344,3005.8,3005.7,2.93618447]
[1633054703235,6.92447344,3005.8,3005.7,2.93618447]
[1633054703638,6.87447344,3005.8,3005.7,2.93618447]
[1633054703837,4.09316212,3005.8,3005.7,2.93618447]
[1633054704437,0.09316212,3005.8,3005.7,2.93618447]
[1633054706238,1.85936668,3005.8,3005.7,2.93618447]
[1633054706639,0.09316212,3005.8,3005.7,2.93618447]
[1633054707636,4.24123324,3006.1,3005.7,2.8708344]
[1633054707637,3.3285574,3006.1,3005.7,2.8708344]
[1633054707838,4.83787587,3006.1,3005.7,2.8708344]
[1633054708238,4.83787587,3006.1,3005.7,4.4708344]
[1633054710640,3.3285574,3006.1,3005.7,4.4708344]
[1633054710840,0.5782863,3006.2,3005.7,4.4708344]
[1633054711040,1.071922,3006.3,3005.7,4.4708344]
[1633054711240,4.99272,3006.0,3005.7,4.4708344]
[1633054711639,1.294,3005.9,3005.7,4.4708344]
[1633054711840,5.61992784,3006.0,3005.7,4.4708344]
[1633054712240,1.93474872,3005.9,3005.7,4.4708344]
[1633054712445,2.55992706,3005.9,3005.7,4.4708344]
[1633054712843,1.93474872,3005.9,3005.8,0.0653334]
[1633054713042,2.41325212,3005.9,3005.8,0.0653334]
[1633054713243,2.41848227,3005.9,3005.8,0.0653334]
[1633054713642,2.54584918,3005.9,3005.8,0.0653334]
[1633054713846,2.5509793,3005.9,3005.8,0.0653334]
[1633054714042,2.48388392,3005.9,3005.8,0.0653334]
[1633054714243,1.93474872,3005.9,3005.8,0.0653334]
[1633054714506,2.457994,3005.9,3005.8,0.0653334]
[1633054714844,2.5576612,3005.9,3005.8,0.0653334]
[1633054715051,2.52404899,3005.9,3005.8,0.0653334]
[1633054715244,1.93474872,3005.9,3005.8,0.0653334]
[1633054715445,2.45812255,3005.9,3005.8,0.0653334]
[1633054715843,2.4734562,3005.9,3005.8,0.0653334]
[1633054716045,5.55912404,3006.0,3005.8,0.0653334]
[1633054716644,4.99245,3006.0,3005.8,0.0653334]
[1633054717145,0.003,3006.5,3005.9,1.494]
[1633054717347,0.003,3006.5,3005.9,0.2]
[1633054717943,0.003,3006.5,3006.0,0.74258662]
[1633054718144,0.003,3006.5,3006.2,1.48038201]
[1633054718344,0.003,3006.5,3006.3,0.2]
[1633054718545,0.09323707,3006.4,3006.3,0.2]
[1633054719144,0.9952,3007.0,3006.4,3.75]
[1633054719345,0.9952,3007.0,3006.7,1.294]
[1633054719544,0.9952,3007.0,3006.8,0.2]
[1633054719745,0.9952,3007.0,3006.9,0.2]
[1633054720144,0.98633908,3007.0,3006.9,2.45697166]
[1633054720346,0.98633908,3007.0,3006.9,3.75097166]
[1633054721346,0.98633908,3007.0,3006.9,0.2]
[1633054721948,0.98633908,3007.0,3006.0,13.86027505]
[1633054721949,0.98633908,3007.0,3006.3,0.2]
[1633054722549,4.99096,3006.7,3006.3,1.69497257]
[1633054722949,6.65477,3006.9,3006.3,1.69497257]
[1633054723148,0.98633908,3007.0,3006.3,1.69497257]
[1633054723548,0.98633908,3007.0,3006.3,2.69497257]
[1633054723748,0.98633908,3007.0,3006.3,7.68439257]
[1633054723948,0.98633908,3007.0,3006.9,1.78095925]
[1633054724149,1.03299208,3007.0,3006.9,1.78095925]
[1633054724349,1.03299208,3007.0,3006.7,0.2]
[1633054724749,1.03299208,3007.0,3006.7,1.06192138]
[1633054725556,1.03299208,3007.0,3006.8,1.58250352]
[1633054726752,0.98299208,3007.0,3006.8,1.58250352]
[1633054728154,0.98299208,3007.0,3006.9,0.2]
[1633054729353,0.88633908,3007.0,3006.9,0.2]
[1633054733637,2.44136246,3007.0,3006.9,0.2]
[1633054734838,2.48805021,3007.0,3006.9,0.2]
[1633054735840,3.45,3006.9,3006.7,1.6]
[1633054736042,4.99192,3006.8,3006.7,1.6]
[1633054736240,5.99192,3006.8,3006.7,1.6]
[1633054736638,33.99192,3006.8,3006.7,1.6]
[1633054737138,35.28592,3006.8,3006.7,1.6]
[1633054738140,7.0,3006.8,3006.7,1.6]
[1633054738340,0.93302683,3007.0,3006.7,1.6]
[1633054739341,0.95293262,3006.9,3006.7,1.6]
[1633054739740,5.94330262,3006.9,3006.7,1.6]
[1633054739941,0.95293262,3006.9,3006.7,1.6]
[1633054740543,2.83471353,3007.0,3006.8,0.11179361]
[1633054741540,4.9904,3006.9,3006.8,0.11179361]
[1633054741941,0.88633908,3007.0,3006.8,0.11179361]
[1633054742541,0.003,3007.5,3006.9,7.394]
[1633054742741,0.003,3007.5,3007.0,3.00498111]
[1633054742941,0.003,3007.5,3007.1,2.21699101]
[1633054743141,0.003,3007.5,3007.4,0.98817626]
[1633054743342,0.003,3007.5,3007.4,1.18817626]
[1633054744741,0.003,3007.5,3007.4,5.10341648]
[1633054745148,0.003,3007.5,3007.4,2.48217626]
[1633054745341,0.003,3008.0,3007.6,6.6488458]
[1633054745542,0.003,3008.0,3007.7,2.87608555]
[1633054745741,0.003,3008.0,3007.8,2.95103575]
[1633054745942,0.003,3008.0,3007.9,10.74073172]
[1633054746143,0.003,3008.0,3007.9,5.26940229]
[1633054746942,0.003,3008.0,3007.9,10.86340229]
[1633054747143,0.003,3008.0,3007.9,7.56340229]
[1633054747343,0.003,3008.0,3007.9,28.54340229]
[1633054747543,0.003,3008.0,3007.9,25.98293172]
[1633054748345,0.003,3008.5,3007.9,25.98293172]
[1633054748545,0.003,3008.5,3008.2,1.294]
[1633054748745,0.003,3008.5,3008.3,5.18574]
[1633054749145,0.003,3008.5,3008.4,10.75]
[1633054749346,0.003,3009.0,3008.4,13.47450027]
[1633054749549,0.003,3009.0,3008.6,3.3233221]
[1633054749746,0.003,3009.0,3008.7,2.71889698]
[1633054750146,0.003,3009.0,3008.7,7.75528645]
[1633054750749,0.003,3009.0,3008.8,1.294]
[1633054750950,0.003,3009.0,3008.9,0.2]
[1633054751550,0.05892238,3009.0,3008.9,0.2]
[1633054751747,0.05892238,3009.0,3008.9,2.86561412]
[1633054751949,0.05892238,3009.0,3008.9,23.53961412]
[1633054752351,0.05892238,3009.0,3008.9,4.15961412]
[1633054752551,0.05892238,3009.0,3008.9,23.53961412]
[1633054752750,0.003,3010.0,3009.0,9.75]
[1633054752950,0.003,3010.0,3009.1,0.2]
[1633054753152,0.003,3010.0,3009.2,0.2]
[1633054753351,0.071922,3009.6,3009.2,0.2]
[1633054753549,0.079913,3009.3,3009.2,0.2]
[1633054754548,0.79033257,3009.4,3009.2,0.2]
[1633054754951,0.071922,3009.6,3009.2,0.2]
[1633054755954,0.81587298,3009.5,3009.4,1.66796109]
[1633054756756,0.003,3009.5,3009.4,1.66796109]
[1633054756955,0.0310113,3009.5,3009.4,3.39410368]
[1633054757753,0.79546009,3009.5,3009.4,3.39410368]
[1633054758055,1.31835811,3008.4,3007.2,0.2]
[1633054758255,1.31835811,3008.4,3006.2,3.32484]
[1633054758256,0.10540886,3007.6,3006.2,3.32484]
[1633054758558,0.003,3007.0,3006.2,3.32484]
[1633054758954,0.003,3007.0,3006.2,4.0639241]
[1633054758955,1.02620818,3006.8,3006.2,4.0639241]
[1633054759254,0.079913,3006.3,3005.8,0.003]
[1633054759519,4.2,3006.7,3005.8,0.003]
[1633054759520,0.079913,3005.9,3005.8,0.003]
[1633054759654,1.705813,3005.9,3005.8,0.003]
[1633054760654,6.697963,3005.9,3005.8,0.003]
[1633054761656,6.697963,3005.9,3005.8,1.86612659]
[1633054761854,1.6259,3005.9,3005.8,1.86612659]
[1633054762454,1.71658384,3005.9,3005.8,1.92978154]
[1633054762657,0.09068384,3005.9,3005.8,1.92978154]
[1633054764255,0.09068384,3005.9,3005.8,0.06665495]
[1633054764456,0.29068384,3005.9,3005.8,0.06665495]
[1633054764659,0.79358746,3005.9,3005.8,0.06665495]
[1633054765055,0.81667564,3005.9,3005.8,0.06665495]
[1633054765257,9.12382018,3005.9,3005.8,0.06665495]
[1633054765518,0.29068384,3005.9,3005.8,0.06665495]
[1633054765657,7.29068384,3005.9,3005.8,0.06665495]
[1633054765856,0.09068384,3005.9,3005.8,0.06665495]
[1633054766657,2.98558384,3005.9,3005.8,0.06665495]
[1633054767159,48.0015851,3005.9,3005.8,0.06665495]
[1633054767357,66.08257266,3005.9,3005.8,0.06665495]
[1633054767559,63.43778366,3005.9,3005.8,0.06665495]
[1633054767758,65.87937466,3005.9,3005.8,0.06665495]
[1633054767957,65.87937466,3005.9,3005.8,0.003]
[1633054767958,52.80563282,3005.9,3005.8,0.003]
[1633054768359,53.75930882,3005.9,3005.8,0.003]
[1633054768761,27.75930882,3005.9,3005.8,0.003]
[1633054768960,30.77363682,3005.9,3005.8,0.003]
[1633054769158,37.47877482,3005.9,3005.8,0.303]
[1633054769359,39.93188582,3005.9,3005.8,0.303]
[1633054770162,39.93188582,3005.9,3004.2,0.006]
[1633054770163,6.7,3005.5,3004.2,0.006]
[1633054770465,1.904439,3004.3,3004.2,0.006]
[1633054770663,2.104439,3004.3,3004.2,0.006]
[1633054771663,14.10360905,3004.3,3004.2,0.006]
[1633054771863,14.10694105,3004.3,3004.2,0.006]
[1633054772064,17.09308505,3004.3,3004.2,0.006]
[1633054772266,17.83202933,3004.3,3004.2,0.006]
[1633054772467,19.25489733,3004.3,3004.2,0.006]
[1633054772665,27.20968733,3004.3,3004.2,0.006]
[1633054772867,30.18876433,3004.3,3004.2,0.006]
[1633054773065,27.20968833,3004.3,3004.2,0.006]
[1633054773466,27.30019509,3004.3,3004.2,0.0699148]
[1633054774067,31.63959609,3004.3,3004.2,0.0699148]
[1633054774267,29.76662609,3004.3,3004.2,0.0699148]
[1633054774528,31.34965309,3004.3,3004.2,0.0699148]
[1633054774670,30.61209109,3004.3,3004.2,0.0699148]
[1633054774872,51.87314681,3004.3,3004.2,0.0699148]
[1633054775070,39.44498881,3004.3,3004.2,0.0699148]
[1633054775267,46.44498881,3004.3,3004.2,0.0699148]
[1633054776270,14.44498881,3004.3,3004.2,0.0699148]
[1633054776468,16.55789181,3004.3,3004.2,0.0699148]
[1633054776870,14.44498881,3004.3,3004.2,0.0699148]
[1633054777069,16.55789181,3004.3,3004.2,0.0699148]
[1633054777268,9.89710181,3004.3,3004.2,0.0699148]
[1633054777532,7.78419881,3004.3,3004.2,0.0699148]
[1633054778270,20.47133281,3004.3,3004.2,0.0699148]
[1633054778473,31.60299642,3004.3,3004.2,0.0699148]
[1633054778669,37.87685142,3004.3,3004.2,0.0699148]
[1633054778878,37.87685142,3004.3,3004.2,0.006]
[1633054778879,37.78634466,3004.3,3004.2,0.006]
[1633054779068,44.32616966,3004.3,3004.2,0.006]
[1633054779274,58.78642466,3004.3,3004.2,0.006]
[1633054779470,59.32624566,3004.3,3004.2,0.006]
[1633054779670,38.84916005,3004.3,3004.2,0.006]
[1633054779872,10.78925305,3004.3,3004.2,0.006]
[1633054780075,2.08325305,3004.3,3004.2,0.006]
[1633054780270,2.08325305,3004.3,3004.1,0.006]
[1633054780271,12.94655205,3004.3,3004.1,0.006]
[1633054780469,27.35248205,3004.3,3004.1,0.006]
[1633054780671,12.024832,3004.2,3004.1,0.006]
[1633054780872,6.84294206,3004.2,3004.1,0.006]
[1633054781071,20.99240855,3004.2,3004.1,0.006]
[1633054781270,20.99240855,3004.2,3004.0,0.009]
[1633054781271,27.54955101,3004.2,3004.0,0.009]
[1633054781473,1.57140945,3004.1,3004.0,0.009]
[1633054781671,7.86332045,3004.1,3004.0,0.009]
[1633054782071,7.47341145,3004.1,3004.0,0.009]
[1633054782276,6.01351945,3004.1,3004.0,0.01002276]
[1633054782472,7.01351945,3004.1,3004.0,0.01002276]
[1633054782677,1.77140945,3004.1,3004.0,0.01002276]
[1633054782873,0.77140945,3004.1,3004.0,0.01002276]
[1633054783077,24.51627154,3004.1,3003.9,0.006]
[1633054783274,11.79567354,3004.1,3003.9,0.006]
[1633054783532,8.0,3004.0,3003.9,0.006]
[1633054783674,8.2,3004.0,3003.9,0.006]
[1633054783874,8.69962451,3004.0,3003.9,0.006]
[1633054784275,13.69647451,3004.0,3003.9,0.006]
[1633054784476,5.19685,3004.0,3003.9,0.06997168]
[1633054785478,5.75899922,3004.0,3003.9,0.06997168]
[1633054787277,5.75899922,3004.0,3003.9,1.97448827]
[1633054787479,3.3309231,3004.4,3003.9,1.97448827]
[1633054787680,3.3309231,3004.4,3003.9,0.06997168]
[1633054788079,4.99517,3004.3,3003.9,0.06997168]
[1633054788683,1.71047873,3004.2,3003.9,0.06997168]
[1633054789382,0.87359873,3004.1,3003.9,0.06997168]
[1633054789582,5.95987855,3004.1,3003.9,0.006]
[1633054789782,7.54749978,3004.1,3003.9,0.006]
[1633054789982,6.54749978,3004.1,3003.9,0.06995543]
[1633054790983,9.87833978,3004.1,3003.9,0.06995543]
[1633054791584,6.54749978,3004.1,3003.9,0.06995543]
[1633054792385,5.67390105,3004.1,3003.9,0.06995543]
[1633054792585,0.67810105,3004.1,3003.9,0.06995543]
[1633054792784,0.67810105,3004.1,3003.9,0.07087115]
[1633054794591,0.09047982,3004.1,3003.9,0.07087115]
[1633054795187,0.09047982,3004.1,3004.0,3.0939761]
[1633054795388,0.003,3004.5,3004.4,0.70957343]
[1633054795653,0.003,3004.5,3004.0,1.7999761]
[1633054796250,1.48933834,3004.5,3004.0,1.7999761]
[1633054796452,1.48933834,3004.5,3004.3,0.8889096]
[1633054797152,0.003,3004.5,3004.3,0.8889096]
[1633054797751,0.003,3004.5,3004.0,1.7999761]
[1633054798153,1.68548086,3004.5,3004.0,1.7999761]
[1633054798352,0.003,3004.5,3004.0,1.7999761]
[1633054798758,0.003,3004.5,3004.2,0.85270068]
[1633054799258,0.003,3004.5,3004.3,6.28712]
[1633054799460,0.003,3004.5,3004.2,1.05270068]
[1633054800260,0.003,3004.5,3004.3,1.294]
[1633054800459,0.003,3004.5,3004.2,1.05270068]
[1633054803164,0.003,3004.5,3004.4,11.66706507]
[1633054803363,0.003,3004.5,3004.4,2.16706507]
[1633054803962,0.003,3004.5,3004.4,21.54706507]
[1633054804162,0.003,3004.5,3004.4,22.84106507]
[1633054804966,0.003,3004.5,3004.4,23.84106507]
[1633054805365,0.003,3004.5,3004.4,22.84106507]
[1633054805568,0.003,3004.5,3004.4,0.2]
[1633054805769,0.003,3004.5,3004.4,1.494]
[1633054805968,0.003,3005.0,3004.4,30.26288103]
[1633054806167,0.003,3005.0,3004.4,30.61608506]
[1633054806370,0.003,3005.0,3004.5,1.0]
[1633054806573,0.003,3005.0,3004.6,5.195]
[1633054806768,0.003,3005.0,3004.7,2.74499409]
[1633054806966,0.003,3005.0,3004.8,22.34309334]
[1633054807166,0.003,3005.0,3004.8,21.04909334]
[1633054807366,0.003,3005.0,3004.9,1.0]
[1633054807566,0.003,3005.0,3004.9,0.2]
[1633054807966,0.003,3005.0,3004.3,11.0279]
[1633054808168,0.003,3005.0,3004.6,0.2]
[1633054808370,3.32925,3004.8,3004.6,0.2]
[1633054808768,4.15898081,3004.8,3004.6,0.2]
[1633054808966,4.15898081,3004.8,3004.4,1.98792981]
[1633054808967,1.89206774,3004.7,3004.4,1.98792981]
[1633054809568,4.99395,3004.6,3004.4,1.98792981]
[1633054809768,0.003,3005.0,3004.4,1.98792981]
[1633054809969,3.0724542,3005.1,3004.4,1.98792981]
[1633054810169,3.0724542,3005.1,3004.5,0.203]
[1633054810371,0.003,3005.5,3004.8,1.294]
[1633054810572,0.9160267,3005.5,3005.2,1.95620904]
[1633054810975,0.9160267,3005.5,3004.9,0.79090066]
[1633054811172,5.9080167,3005.5,3004.5,3.03638279]
[1633054811371,5.9080167,3005.5,3004.5,0.203]
[1633054811573,4.2447067,3005.5,3004.5,0.203]
[1633054811872,4.3198807,3005.5,3004.5,0.2]
[1633054812071,0.84711854,3004.9,3004.8,1.91678252]
[1633054812272,1.47490133,3005.1,3004.5,0.2]
[1633054812471,3.406854,3005.5,3004.5,0.2]
[1633054812673,6.65793,3005.0,3004.5,0.2]
[1633054812873,3.3291565,3004.8,3004.4,0.003]
[1633054813273,3.3291565,3004.8,3004.3,0.003]
[1633054813473,3.3291565,3004.8,3004.0,0.006]
[1633054813673,1.97769201,3004.7,3004.0,0.006]
[1633054813873,4.05686874,3004.5,3004.0,0.006]
[1633054814073,3.3295885,3004.5,3004.0,0.006]
[1633054814873,3.3295885,3004.5,3004.3,1.81104963]
[1633054815276,3.3295885,3004.5,3004.4,0.003]
[1633054816275,2.94585607,3004.7,3004.4,0.003]
[1633054817473,4.99429,3004.6,3004.4,0.003]
[1633054818073,3.3291565,3004.8,3004.0,0.003]
[1633054818074,0.074922,3005.5,3004.5,1.294]
[1633054818274,0.003,3005.5,3004.6,2.95678018]
[1633054818474,0.003,3005.5,3004.8,4.99205]
[1633054818475,9.003,3005.5,3004.8,4.99205]
[1633054818678,0.003,3005.5,3004.9,0.2]
[1633054819073,0.003,3005.5,3005.2,1.68274505]
[1633054819074,8.003,3005.5,3005.2,1.68274505]
[1633054819674,0.003,3005.5,3005.2,1.68274505]
[1633054820274,0.003,3005.5,3005.1,3.32758]
[1633054820474,0.003,3005.5,3005.0,0.90721004]
[1633054821278,0.003,3005.5,3005.3,4.99133]
[1633054821478,0.003,3005.5,3005.2,1.67387071]
[1633054821875,1.17682062,3005.7,3005.3,2.75]
[1633054822076,1.17682062,3005.7,3005.2,1.67387071]
[1633054822476,3.09318054,3005.7,3005.2,1.67387071]
[1633054822679,1.17682062,3005.7,3005.2,1.67387071]
[1633054822877,1.17682062,3005.7,3005.2,6.66525071]
[1633054823478,1.17682062,3005.7,3005.2,4.99138]
[1633054823677,1.17682062,3005.7,3005.0,4.23801004]
[1633054824679,1.17682062,3005.7,3005.4,1.47390664]
[1633054826079,1.17682062,3005.7,3005.4,6.46518664]
[1633054826682,1.17682062,3005.7,3005.5,0.97740059]
[1633054826885,1.17682062,3005.7,3005.5,1.02791605]
[1633054827080,0.09967024,3005.6,3005.5,1.02791605]
[1633054827281,0.09967024,3005.6,3005.5,0.05051546]
[1633054827685,0.003,3006.0,3005.7,3.53046186]
[1633054827880,0.003,3006.0,3005.8,0.2]
[1633054828481,0.003,3006.0,3005.9,5.50074237]
[1633054828683,0.003,3006.0,3005.9,1.80074237]
[1633054830481,0.003,3006.0,3005.9,6.79106237]
[1633054831082,0.003,3006.0,3005.9,8.08506237]
[1633054831284,0.003,3006.0,3005.9,10.66336237]
[1633054832285,0.003,3006.0,3005.9,30.04336237]
[1633054832487,0.05288399,3006.0,3005.9,30.04336237]
[1633054832786,0.003,3007.0,3006.1,7.2260279]
[1633054832985,0.003,3007.0,3006.3,1.294]
[1633054833185,0.003,3007.0,3006.4,12.70482961]
[1633054833385,0.003,3007.0,3006.4,3.00482961]
[1633054833586,1.86901769,3007.0,3006.4,3.00482961]
[1633054833788,1.86901769,3007.0,3006.4,2.01422139]
[1633054834387,1.86901769,3007.0,3006.4,0.2]
[1633054834588,4.99054,3006.8,3006.4,0.2]
[1633054834787,1.86901769,3007.0,3005.7,3.53046186]
[1633054834788,2.11807855,3006.5,3005.7,3.53046186]
[1633054834988,0.079913,3006.0,3005.7,3.53046186]
[1633054835388,1.51097243,3005.9,3005.7,3.53046186]
[1633054835786,2.22248912,3005.9,3005.7,3.53046186]
[1633054835986,8.55069736,3005.8,3005.7,3.53046186]
[1633054836187,19.55069736,3005.8,3005.7,3.53046186]
[1633054836389,20.55069736,3005.8,3005.7,3.53046186]
[1633054837190,20.75069736,3005.8,3005.7,3.53046186]
[1633054837588,20.15137,3005.8,3005.7,3.53046186]
[1633054837788,7.88228528,3005.8,3005.7,3.65572285]
[1633054837989,6.88228528,3005.8,3005.7,3.65572285]
[1633054838190,8.17628528,3005.8,3005.7,3.65572285]
[1633054838790,8.6644777,3005.8,3005.7,3.65572285]
[1633054839990,8.4644777,3005.8,3005.7,3.65572285]
[1633054840993,7.1704777,3005.8,3005.7,3.65572285]
[1633054841191,6.68228528,3005.8,3005.7,3.65572285]
[1633054841790,7.2748612,3005.8,3005.7,3.65572285]
[1633054841992,0.02491528,3005.8,3005.7,3.65572285]
[1633054843393,7.3502487,3005.9,3005.7,3.53046186]
[1633054844052,0.47492026,3005.8,3005.7,3.53046186]
[1633054844454,2.3576287,3005.9,3005.7,3.53046186]
[1633054848858,2.38255533,3005.9,3005.8,0.12524519]
[1633054849658,1.53589906,3005.9,3005.8,0.12524519]
[1633054851557,0.02492663,3005.9,3005.8,0.12524519]
[1633054852564,1.99839369,3005.9,3005.8,0.12524519]
[1633054854359,1.99839369,3005.9,3005.7,3.53046186]
[1633054854360,1.97346706,3005.9,3005.7,3.53046186]
[1633054855564,6.96543706,3005.9,3005.7,3.53046186]
[1633054855962,3.3279,3006.2,3005.7,3.53046186]
[1633054856363,0.071922,3006.4,3005.7,3.53046186]
[1633054856564,0.071922,3006.4,3005.7,8.52121186]
[1633054856763,0.071922,3006.4,3006.0,0.90375787]
[1633054856963,1.7793452,3006.2,3006.0,0.90375787]
[1633054857163,0.071922,3006.4,3005.7,3.53046186]
[1633054858167,0.003,3006.5,3005.9,0.96147732]
[1633054859365,1.96470461,3006.2,3005.9,0.96147732]
[1633054859565,1.96470461,3006.2,3005.9,5.95188732]
[1633054859764,0.003,3006.5,3006.0,0.12518992]
[1633054859965,0.09688697,3006.4,3006.0,0.12518992]
[1633054860767,1.00097544,3006.1,3006.0,0.12518992]
[1633054860965,4.99154,3006.2,3006.0,0.12518992]
[1633054862766,0.70976397,3006.1,3006.0,0.12518992]
[1633054865571,3.32782,3006.0,3005.7,3.53046186]
[1633054866773,3.32782,3006.0,3005.8,0.71016429]
[1633054867573,4.9915,3005.9,3005.8,0.71016429]
[1633054867772,4.9915,3005.9,3005.7,3.53046186]
[1633054867972,4.9915,3005.9,3005.8,1.294]
[1633054868175,3.33067,3006.5,3006.0,3.08457695]
[1633054868176,0.003,3006.5,3006.0,3.08457695]
[1633054868375,0.003,3006.5,3006.1,3.27462566]
[1633054868575,0.003,3006.5,3006.2,4.98937]
[1633054868772,0.003,3006.5,3006.3,0.2]
[1633054868973,0.003,3006.5,3006.4,7.55475767]
[1633054869173,0.003,3006.5,3006.4,3.79875767]
[1633054869373,0.003,3006.5,3006.4,4.79875767]
[1633054870774,0.003,3006.5,3006.4,4.91072388]
[1633054872374,0.003,3006.5,3006.4,4.04995416]
[1633054872975,0.003,3006.5,3006.4,3.04995416]
[1633054873778,0.003,3006.5,3006.4,1.60596621]
[1633054873974,0.003,3006.5,3006.4,0.31196621]
[1633054874175,0.003,3006.5,3006.4,0.11196621]
[1633054874376,1.26245728,3006.5,3006.4,0.11196621]
[1633054874574,2.26245728,3006.5,3006.4,0.11196621]
[1633054874774,40.10444098,3006.5,3006.4,0.11196621]
[1633054875577,46.75971098,3006.5,3006.4,0.11196621]
[1633054875774,64.75971098,3006.5,3006.4,0.11196621]
[1633054876377,62.75971098,3006.5,3006.0,3.08457695]
[1633054876575,1.23334623,3006.4,3006.0,3.08457695]
[1633054876776,3.327729,3006.3,3006.0,3.08457695]
[1633054876978,4.9916,3006.2,3006.0,3.08457695]
[1633054877579,1.53432421,3006.1,3006.0,3.08457695]
[1633054878982,0.88660243,3005.7,3005.5,0.003]
[1633054879379,0.88660243,3005.7,3005.0,0.006]
[1633054879582,0.079913,3005.1,3004.7,0.006]
[1633054879778,0.079913,3005.1,3004.5,0.009]
[1633054879779,0.80834024,3005.0,3004.5,0.009]
[1633054879980,0.80834024,3005.0,3004.1,0.009]
[1633054879981,6.36809228,3005.0,3004.1,0.009]
[1633054880281,2.96961877,3004.5,3004.1,0.009]
[1633054880679,4.99428,3004.3,3004.1,0.009]
[1633054881483,6.13288,3004.3,3004.1,0.009]
[1633054881679,6.13288,3004.3,3004.0,0.012]
[1633054881879,24.073724,3004.2,3004.0,0.012]
[1633054882079,0.078684,3004.2,3004.0,0.012]
[1633054882281,0.03377562,3004.3,3004.2,1.79581659]
[1633054882480,0.03377562,3004.3,3004.0,0.012]
[1633054882680,0.03377562,3004.3,3004.2,0.009]
[1633054883079,0.03377562,3004.3,3004.0,0.012]
[1633054883481,0.03377562,3004.3,3004.0,1.64714474]
[1633054883880,0.03377562,3004.3,3004.1,0.009]
[1633054884280,0.03377562,3004.3,3004.2,0.00085339]
[1633054884681,0.03377562,3004.3,3004.2,0.00985339]
[1633054888689,0.03377562,3004.3,3004.2,1.57601458]
[1633054889488,0.03377562,3004.3,3004.2,0.00985339]
[1633054890488,1.96811468,3004.3,3004.2,0.00985339]
[1633054890690,0.03377562,3004.3,3004.2,0.00985339]
[1633054890891,0.64799302,3004.6,3004.3,9.71115968]
[1633054891091,0.44156169,3005.4,3004.4,2.52083233]
[1633054891291,1.35557949,3005.7,3004.5,1.58753384]
[1633054891558,1.35557949,3005.7,3004.6,4.23084176]
[1633054891559,0.88660243,3005.7,3004.6,4.23084176]
[1633054891692,0.88660243,3005.7,3004.7,1.58754275]
[1633054892002,0.88660243,3005.7,3005.5,4.99079]
[1633054892191,0.88660243,3005.7,3005.5,5.19079]
[1633054892392,0.88660243,3005.7,3005.6,1.0]
[1633054892991,0.88660243,3005.7,3005.6,2.294]
[1633054893393,0.88660243,3005.7,3005.6,1.2]
[1633054893593,0.88660243,3005.7,3005.6,0.2]
[1633054896602,0.88660243,3005.7,3005.6,0.32897684]
[1633054904469,0.88660243,3005.7,3005.6,1.75061258]
[1633054904671,0.88660243,3005.7,3005.6,0.32897684]
[1633054907271,1.8142115,3005.7,3005.6,0.32897684]
[1633054907673,1.8142115,3005.7,3005.6,0.2]
[1633054907871,1.8322434,3005.7,3005.6,0.2]
[1633054908271,0.90463433,3005.7,3005.6,0.2]
[1633054915785,2.36962119,3006.0,3005.7,0.88660243]
[1633054915985,2.36962119,3006.0,3005.8,2.78453571]
[1633054916182,2.36962119,3006.0,3005.8,0.2]
[1633054916383,2.36962119,3006.0,3005.9,1.0]
[1633054916581,2.36962119,3006.0,3005.9,0.2]
[1633054916781,2.36962119,3006.0,3005.9,0.94358165]
[1633054916982,2.36962119,3006.0,3005.9,1.96642292]
[1633054921984,2.36962119,3006.0,3005.9,6.95640292]
[1633054922386,2.36962119,3006.0,3005.9,7.95640292]
[1633054922785,2.36962119,3006.0,3005.9,10.61426778]
[1633054922985,2.36962119,3006.0,3005.9,7.95640292]
[1633054924790,2.119e-05,3006.0,3005.9,13.23667118]
[1633054924995,2.119e-05,3006.0,3005.9,32.61667118]
[1633054925197,2.119e-05,3006.0,3005.9,38.0182899]
[1633054925389,2.119e-05,3006.0,3005.9,39.97653128]
[1633054926189,2.119e-05,3006.0,3005.9,40.54964539]
[1633054926390,2.119e-05,3006.0,3005.9,47.17164539]
[1633054926590,0.003,3006.5,3005.9,47.17164539]
[1633054926591,0.003,3006.5,3005.9,62.91439286]
[1633054926790,0.003,3006.5,3006.2,6.289]
[1633054926991,0.003,3006.5,3006.4,11.22493838]
[1633054927189,0.003,3006.5,3006.4,12.81172197]
[1633054927389,0.003,3006.5,3006.4,33.03415185]
[1633054927589,0.003,3006.5,3006.4,34.03415185]
[1633054927790,0.003,3006.5,3006.4,24.50883758]
[1633054927989,0.003,3006.5,3006.4,25.80283758]
[1633054928891,0.003,3007.0,3006.7,3.32478]
[1633054929091,0.003,3007.0,3006.8,1.494]
[1633054929291,0.003,3007.0,3006.8,1.2]
[1633054929691,0.003,3007.0,3006.9,6.82747528]
[1633054929891,0.003,3007.0,3006.9,8.01902114]
[1633054930089,0.003,3007.0,3006.9,9.01902114]
[1633054930290,0.003,3007.0,3006.9,10.31302114]
[1633054931098,0.003,3007.0,3006.9,37.69302114]
[1633054931295,0.003,3007.5,3007.4,9.89721211]
[1633054931493,0.003,3007.5,3007.4,1.94721211]
[1633054931893,0.003,3007.5,3007.4,0.94721211]
[1633054932297,0.003,3007.5,3007.4,2.81104793]
[1633054932493,0.003,3007.5,3007.4,7.79786793]
[1633054932696,0.003,3007.5,3007.4,8.79786793]
[1633054932895,0.003,3007.5,3007.4,8.05065582]
[1633054933556,0.02102073,3007.5,3007.4,8.05065582]